bitfinex-derivatives/quotes_BTCF0:USTF0_20250322
["timestamp","ask_amount","ask_price","bid_price","bid_amount"]
[1742684007694,0.183712,84012.0,84011.0,0.2977732]
[1742684007904,0.183712,84012.0,84011.0,0.2644732]
[1742684008606,0.186712,84012.0,84011.0,0.11352]
[1742684008796,0.1785963,84005.0,84004.0,0.1190628]
[1742684008998,0.5405563,84005.0,84004.0,0.2317428]
[1742684009402,0.5405563,84005.0,84004.0,0.11268]
[1742684009601,0.5405563,84005.0,84004.0,0.2317433]
[1742684009906,0.4203316,84005.0,84004.0,0.2317433]
[1742684010300,0.4531316,84005.0,84004.0,0.2317433]
[1742684010607,0.4531316,84005.0,84004.0,0.2327433]
[1742684010807,0.4843316,84005.0,84004.0,0.2327433]
[1742684011200,0.4843316,84005.0,84004.0,0.11368]
[1742684011399,0.4843316,84005.0,84004.0,0.2327433]
[1742684012604,0.4843316,84005.0,84004.0,0.11364]
[1742684012807,0.4843316,84005.0,84004.0,0.2327033]
[1742684013003,0.49613737,84005.0,84004.0,0.2327033]
[1742684014211,0.49613737,84005.0,84004.0,0.11364]
[1742684014403,0.49721738,84005.0,84004.0,0.11424]
[1742684015007,0.69637105,84005.0,84004.0,0.11424]
[1742684015910,0.33557105,84005.0,84004.0,0.11424]
[1742684016105,0.69637105,84005.0,84004.0,0.11424]
[1742684016311,0.69637105,84005.0,84004.0,0.2333033]
[1742684017813,0.69637105,84005.0,84004.0,0.11424]
[1742684018014,0.69637105,84005.0,84004.0,0.0016]
[1742684018214,0.69637105,84005.0,84004.0,0.001]
[1742684018410,0.69637105,84005.0,84004.0,0.0016]
[1742684019014,0.69637105,84005.0,84004.0,0.0006]
[1742684019204,0.69637105,84005.0,84004.0,0.0016]
[1742684019811,0.81541229,84005.0,84004.0,0.0016]
[1742684023417,0.81541229,84005.0,84004.0,0.0957]
[1742684024322,0.81541229,84005.0,84004.0,0.0016]
[1742684024513,0.70425193,84005.0,84004.0,0.0016]
[1742684025017,0.70425193,84005.0,84004.0,0.0661]
[1742684025920,0.70425193,84005.0,84004.0,0.0651]
[1742684027022,0.70525193,84005.0,84004.0,0.0651]
[1742684027824,0.70425193,84005.0,84004.0,0.0651]
[1742684028022,0.70425193,84005.0,84004.0,0.0661]
[1742684028920,0.34345193,84005.0,84004.0,0.0661]
[1742684029223,0.70425193,84005.0,84004.0,0.0661]
[1742684030835,0.67415193,84005.0,84004.0,0.0661]
[1742684031034,0.67415193,84005.0,84004.0,0.1851633]
[1742684031841,0.81387182,84005.0,84004.0,0.1851633]
[1742684032140,0.81387182,84005.0,84004.0,0.1845633]
[1742684032344,0.81387182,84005.0,84004.0,0.1852033]
[1742684033147,0.62349321,84005.0,84004.0,0.1852033]
[1742684033442,0.74255511,84005.0,84004.0,0.1852033]
[1742684033835,0.74255511,84005.0,84004.0,0.1862033]
[1742684034337,0.74255511,84005.0,84004.0,0.1852033]
[1742684034544,0.74255511,84005.0,84004.0,0.1862033]
[1742684036438,0.74255511,84005.0,84004.0,0.1852033]
[1742684036644,0.74255511,84005.0,84004.0,0.1862033]
[1742684037344,0.74255511,84005.0,84004.0,0.1852033]
[1742684037550,0.74255511,84005.0,84004.0,0.1862033]
[1742684037939,0.62349321,84005.0,84004.0,0.1862033]
[1742684038140,0.74255511,84005.0,84004.0,0.1862033]
[1742684040441,0.60283522,84005.0,84004.0,0.1862033]
[1742684041847,0.60283522,84005.0,84004.0,0.1852033]
[1742684042050,0.60283522,84005.0,84004.0,0.1862033]
[1742684042844,0.60283522,84005.0,84004.0,0.1852033]
[1742684043351,0.60283522,84005.0,84004.0,0.06614]
[1742684043551,0.60283522,84005.0,84004.0,0.0323]
[1742684043751,0.60283522,84005.0,84004.0,0.03298]
[1742684044348,0.60283522,84005.0,84004.0,0.1520433]
[1742684048363,0.60283522,84005.0,84004.0,0.1838433]
[1742684049455,0.74131645,84005.0,84004.0,0.1838433]
[1742684049658,0.38051645,84005.0,84004.0,0.1838433]
[1742684049962,0.74131645,84005.0,84004.0,0.1838433]
[1742684050158,0.38051645,84005.0,84004.0,0.1838433]
[1742684050353,0.74131645,84005.0,84004.0,0.1838433]
[1742684050552,0.62225455,84005.0,84004.0,0.2964433]
[1742684050748,0.26145455,84005.0,84004.0,0.2964433]
[1742684051361,0.23025455,84005.0,84004.0,0.2964433]
[1742684057160,0.03388001,84005.0,84004.0,0.2964433]
[1742684057859,0.06538001,84005.0,84004.0,0.2964433]
[1742684060871,0.20785333,84005.0,84004.0,0.2964433]
[1742684061069,0.20677332,84005.0,84004.0,0.2964433]
[1742684061473,0.20785333,84005.0,84004.0,0.2964433]
[1742684061767,0.20677332,84005.0,84004.0,0.2964433]
[1742684064278,0.20793332,84005.0,84004.0,0.2964433]
[1742684064474,0.06546,84005.0,84004.0,0.2964433]
[1742684068893,0.20793332,84005.0,84004.0,0.2964433]
[1742684069193,0.20785333,84005.0,84004.0,0.2964433]
[1742684075804,0.20785333,84005.0,84004.0,0.2646433]
[1742684076297,0.06538001,84005.0,84004.0,0.2646433]
[1742684076905,0.06538001,84005.0,84004.0,0.2333433]
[1742684081605,0.06538001,84005.0,84004.0,0.1207433]
[1742684081606,0.18444191,84005.0,84004.0,0.1207433]
[1742684081809,0.06538001,84005.0,84004.0,0.2333433]
[1742684083301,0.18444191,84005.0,84004.0,0.2333433]
[1742684084611,0.45615516,84005.0,84004.0,0.2333433]
[1742684087908,0.2423304,84005.0,84004.0,0.2333433]
[1742684098816,0.2423304,84005.0,84004.0,0.11428]
[1742684099416,0.2423304,84005.0,84004.0,0.2333433]
[1742684102516,0.45615516,84005.0,84004.0,0.2333433]
[1742684105012,0.45615516,84005.0,84004.0,0.00168]
[1742684105218,0.45615516,84005.0,84004.0,0.1136]
[1742684105526,0.45615516,84005.0,84004.0,0.11468]
[1742684106219,0.37673367,84005.0,84004.0,0.11468]
[1742684109324,0.73753367,84005.0,84004.0,0.11468]
[1742684111925,0.73753367,84005.0,84004.0,0.2337433]
[1742684121044,0.73753367,84005.0,84004.0,0.11468]
[1742684124542,0.6031304,84005.0,84004.0,0.11468]
[1742684127744,0.2423304,84005.0,84004.0,0.11468]
[1742684128051,0.81710401,84005.0,84004.0,0.11468]
[1742684129651,0.45630401,84005.0,84004.0,0.11468]
[1742684129847,0.81710401,84005.0,84004.0,0.11468]
[1742684130560,0.81710401,84005.0,84004.0,0.1136]
[1742684130949,0.81710401,84005.0,84004.0,0.1142]
[1742684132651,0.74009418,84005.0,84004.0,0.1142]
[1742684133947,0.74009418,84005.0,84004.0,0.1136]
[1742684134453,0.74009418,84005.0,84004.0,0.1142]
[1742684135255,0.74009418,84005.0,84004.0,0.0016]
[1742684136440,0.37929418,84005.0,84004.0,0.0016]
[1742684136656,0.74009418,84005.0,84004.0,0.0016]
[1742684141447,0.54524191,84005.0,84004.0,0.0016]
[1742684143455,0.54524191,84005.0,84004.0,0.0639]
[1742684148363,0.18444191,84005.0,84004.0,0.0639]
[1742684148560,0.18444191,84005.0,84004.0,0.1829633]
[1742684149065,0.38072677,84005.0,84004.0,0.1829633]
[1742684153265,0.2423347,84005.0,84004.0,0.1829633]
[1742684155361,0.2423347,84005.0,84004.0,0.0639]
[1742684155561,0.2423347,84005.0,84004.0,0.1829633]
[1742684155764,0.2423347,84005.0,84004.0,0.0962]
[1742684156369,0.2423347,84005.0,84004.0,0.2152633]
[1742684158066,0.2423347,84005.0,84004.0,0.0962]
[1742684165885,0.2423347,84005.0,84004.0,0.0016]
[1742684169585,0.38151503,84005.0,84004.0,0.0016]
[1742684171996,0.74231503,84005.0,84004.0,0.0016]
[1742684175890,0.38151503,84005.0,84004.0,0.0016]
[1742684176201,0.74231503,84005.0,84004.0,0.0016]
[1742684177600,0.38151503,84005.0,84004.0,0.0016]
[1742684177798,0.74231503,84005.0,84004.0,0.0016]
[1742684184198,0.74231503,84005.0,84004.0,0.0635]
[1742684196416,0.6031347,84005.0,84004.0,0.0635]
[1742684199906,0.2423347,84005.0,84004.0,0.0635]
[1742684200106,0.6031347,84005.0,84004.0,0.0635]
[1742684203514,0.2423347,84005.0,84004.0,0.0635]
[1742684203909,0.6031347,84005.0,84004.0,0.0635]
[1742684205613,0.2423347,84005.0,84004.0,0.0635]
[1742684205812,0.6031347,84005.0,84004.0,0.0635]
[1742684207015,0.6031347,84005.0,84004.0,0.0327]
[1742684207812,0.74234578,84005.0,84004.0,0.0327]
[1742684211026,0.6031347,84005.0,84004.0,0.0327]
[1742684212826,0.2423347,84005.0,84004.0,0.0327]
[1742684213023,0.6031347,84005.0,84004.0,0.0327]
[1742684214638,0.6031347,84005.0,84004.0,0.0658]
[1742684219222,0.6031347,84005.0,84004.0,0.1848633]
[1742684223821,0.2423347,84005.0,84004.0,0.1848633]
[1742684224133,0.6031347,84005.0,84004.0,0.1848633]
[1742684226323,0.7420684,84005.0,84004.0,0.1848633]
[1742684237240,0.7420684,84005.0,84004.0,0.1517633]
[1742684243332,0.7420684,84005.0,84004.0,0.1206633]
[1742684256249,0.7420684,84005.0,84004.0,0.0016]
[1742684256553,0.7420684,84005.0,84004.0,0.0334]
[1742684257553,0.7420684,84005.0,84004.0,0.1524633]
[1742684261153,0.7420684,84005.0,84004.0,0.1835633]
[1742684265152,0.7420684,84005.0,84004.0,0.0645]
[1742684272065,0.7420684,84005.0,84004.0,0.1835633]
[1742684273556,0.7420684,84005.0,84004.0,0.0645]
[1742684275759,0.7420684,84005.0,84004.0,0.0334]
[1742684275961,0.7420684,84005.0,84004.0,0.0016]
[1742684281877,0.7420684,84005.0,84004.0,0.1206633]
[1742684284166,0.3812684,84005.0,84004.0,0.1206633]
[1742684284372,0.7420684,84005.0,84004.0,0.0016]
[1742684285582,0.7420684,84005.0,84004.0,0.0338]
[1742684287683,0.3812684,84005.0,84004.0,0.0338]
[1742684287882,0.7420684,84005.0,84004.0,0.0338]
[1742684288983,0.7420684,84005.0,84004.0,0.1528633]
[1742684290691,0.7420684,84005.0,84004.0,0.0338]
[1742684298185,0.7420684,84005.0,84004.0,0.1528633]
[1742684301690,0.7420684,84005.0,84004.0,0.1835633]
[1742684329617,0.6230065,84005.0,84004.0,0.1835633]
[1742684334728,0.4840728,84005.0,84004.0,0.1835633]
[1742684336916,0.1232728,84005.0,84004.0,0.1835633]
[1742684338122,0.33725595,84005.0,84004.0,0.1835633]
[1742684338314,0.33733594,84005.0,84004.0,0.1835633]
[1742684342218,0.12335279,84005.0,84004.0,0.1835633]
[1742684345721,0.06546,84005.0,84004.0,0.1835633]
[1742684353528,0.24365769,84005.0,84004.0,0.1835633]
[1742684355330,0.24365769,84005.0,84004.0,0.1528633]
[1742684355537,0.24365769,84005.0,84004.0,0.1206633]
[1742684358531,0.36271959,84005.0,84004.0,0.1206633]
[1742684359336,0.24365769,84005.0,84004.0,0.1206633]
[1742684360734,0.06546,84005.0,84004.0,0.1206633]
[1742684367830,0.12334637,84005.0,84004.0,0.1206633]
[1742684387553,0.13518704,84005.0,84004.0,0.1206633]
[1742684389548,0.25424894,84005.0,84004.0,0.1206633]
[1742684389856,0.25424894,84005.0,84004.0,0.1525633]
[1742684390857,0.13518704,84005.0,84004.0,0.1525633]
[1742684391646,0.25424894,84005.0,84004.0,0.0016]
[1742684392550,0.25424894,84005.0,84004.0,0.00168]
[1742684393050,0.25424894,84005.0,84004.0,0.1207433]
[1742684393240,0.25424894,84005.0,84004.0,0.00168]
[1742684393647,0.25424894,84005.0,84004.0,0.0016]
[1742684393953,0.25424894,84005.0,84004.0,0.00168]
[1742684398553,0.39001705,84005.0,84004.0,0.00168]
[1742684402457,0.39001705,84005.0,84004.0,0.00108]
[1742684402654,0.39001705,84005.0,84004.0,0.0016]
[1742684402849,0.39001705,84005.0,84004.0,0.00168]
[1742684407572,0.75081705,84005.0,84004.0,0.00168]
[1742684408469,0.75081705,84005.0,84004.0,0.00108]
[1742684408670,0.75081705,84005.0,84004.0,0.00168]
[1742684411765,0.75081705,84005.0,84004.0,0.00108]
[1742684411971,0.75081705,84005.0,84004.0,0.00176]
[1742684412965,0.75081705,84005.0,84004.0,8e-05]
[1742684413162,0.75081705,84005.0,84004.0,0.00172]
[1742684413370,0.75081705,84005.0,84004.0,0.00108]
[1742684413568,0.75081705,84005.0,84004.0,0.00172]
[1742684413875,0.75081705,84005.0,84004.0,0.00108]
[1742684414176,0.75081705,84005.0,84004.0,0.00172]
[1742684414376,0.75081705,84005.0,84004.0,0.00108]
[1742684414578,0.75081705,84005.0,84004.0,0.00168]
[1742684414875,0.75081705,84005.0,84004.0,0.00108]
[1742684415072,0.75081705,84005.0,84004.0,0.00168]
[1742684415378,0.75081705,84005.0,84004.0,0.00108]
[1742684415573,0.75081705,84005.0,84004.0,0.00168]
[1742684417575,0.75081705,84005.0,84004.0,0.00108]
[1742684417771,0.75081705,84005.0,84004.0,0.00168]
[1742684419970,0.75081705,84005.0,84004.0,0.00108]
[1742684420176,0.75081705,84005.0,84004.0,0.00176]
[1742684421768,0.75081705,84005.0,84004.0,0.00108]
[1742684421973,0.75081705,84005.0,84004.0,0.00172]
[1742684422676,0.75081705,84005.0,84004.0,0.00108]
[1742684423167,0.75081705,84005.0,84004.0,0.0022]
[1742684423566,0.75081705,84005.0,84004.0,0.00108]
[1742684424074,0.75081705,84005.0,84004.0,0.03408]
[1742684424270,0.75081705,84005.0,84004.0,0.06588]
[1742684424475,0.75081705,84005.0,84004.0,0.06648]
[1742684425176,0.39001705,84005.0,84004.0,0.06648]
[1742684425376,0.75081705,84005.0,84004.0,0.06648]
[1742684426278,0.75081705,84005.0,84004.0,0.06588]
[1742684426480,0.75081705,84005.0,84004.0,0.06648]
[1742684432883,0.75081705,84005.0,84004.0,0.0664]
[1742684433283,0.75081705,84005.0,84004.0,0.0658]
[1742684433477,0.75081705,84005.0,84004.0,0.06644]
[1742684433674,0.86985829,84005.0,84004.0,0.001]
[1742684434072,0.86985829,84005.0,84004.0,0.0016]
[1742684434478,0.50905829,84005.0,84004.0,0.00168]
[1742684434684,0.86985829,84005.0,84004.0,0.00168]
[1742684437490,0.86985829,84005.0,84004.0,0.00108]
[1742684437788,0.86985829,84005.0,84004.0,0.00168]
[1742684439387,0.86985829,84005.0,84004.0,0.00108]
[1742684439584,0.86985829,84005.0,84004.0,0.00168]
[1742684441390,0.50905829,84005.0,84004.0,0.00168]
[1742684441593,0.86985829,84005.0,84004.0,0.00168]
[1742684442792,0.86985829,84005.0,84004.0,0.00108]
[1742684442988,0.86985829,84005.0,84004.0,0.0022]
[1742684445387,0.86985829,84005.0,84004.0,0.00108]
[1742684445584,0.86985829,84005.0,84004.0,0.00168]
[1742684446598,0.86985829,84005.0,84004.0,0.00108]
[1742684447609,0.86985829,84005.0,84004.0,0.00168]
[1742684448713,0.86985829,84005.0,84004.0,0.00108]
[1742684449624,0.73409018,84005.0,84004.0,0.00108]
[1742684450905,0.37329018,84005.0,84004.0,0.00108]
[1742684451112,0.73409018,84005.0,84004.0,0.00168]
[1742684451304,0.73409018,84005.0,84004.0,0.00108]
[1742684455615,0.37329018,84005.0,84004.0,0.00108]
[1742684455815,0.73409018,84005.0,84004.0,0.00176]
[1742684456110,0.73409018,84005.0,84004.0,0.00108]
[1742684456819,0.37329018,84005.0,84004.0,0.00108]
[1742684457018,0.73409018,84005.0,84004.0,0.00176]
[1742684457317,0.73409018,84005.0,84004.0,0.00108]
[1742684457813,0.73409018,84005.0,84004.0,0.00172]
[1742684458009,0.73409018,84005.0,84004.0,0.00108]
[1742684458406,0.73409018,84005.0,84004.0,0.00168]
[1742684458607,0.37329018,84005.0,84004.0,0.00168]
[1742684458808,0.73409018,84005.0,84004.0,0.00168]
[1742684459518,0.73409018,84005.0,84004.0,0.03368]
[1742684460022,0.73409018,84005.0,84004.0,0.03308]
[1742684460319,0.73409018,84005.0,84004.0,0.03372]
[1742684460520,0.73409018,84005.0,84004.0,0.06418]
[1742684460718,0.73409018,84005.0,84004.0,0.06478]
[1742684461321,0.86778678,84005.0,84004.0,0.06478]
[1742684465216,0.86778678,84005.0,84004.0,0.0647]
[1742684470223,0.86778678,84005.0,84004.0,0.0336]
[1742684470420,0.90098678,84005.0,84004.0,0.0336]
[1742684471620,0.90098678,84005.0,84004.0,0.0016]
[1742684471928,0.90098678,84005.0,84004.0,0.001]
[1742684472229,0.90098678,84005.0,84004.0,0.0016]
[1742684476131,0.90098678,84005.0,84004.0,0.001]
[1742684476523,0.90098678,84005.0,84004.0,0.00168]
[1742684476823,0.90098678,84005.0,84004.0,0.00108]
[1742684477227,0.90098678,84005.0,84004.0,0.0022]
[1742684477728,0.90098678,84005.0,84004.0,0.00108]
[1742684480325,0.54018678,84005.0,84004.0,0.00108]
[1742684480517,0.54018678,84005.0,84004.0,0.00168]
[1742684480722,1.26178678,84005.0,84004.0,0.00168]
[1742684480925,1.26178678,84005.0,84004.0,0.00108]
[1742684481232,1.26178678,84005.0,84004.0,0.00168]
[1742684481434,1.26178678,84005.0,84004.0,0.00108]
[1742684482627,1.26178678,84005.0,84004.0,0.00216]
[1742684483337,1.26178678,84005.0,84004.0,0.00108]
[1742684491932,1.12809018,84005.0,84004.0,0.00108]
[1742684500150,1.12809018,84005.0,84004.0,0.001]
[1742684500353,1.12809018,84005.0,84004.0,0.00108]
[1742684500543,1.25906074,84005.0,84004.0,0.00108]
[1742684501346,1.25906074,84005.0,84004.0,0.03298]
[1742684502245,1.25906074,84005.0,84004.0,0.06328]
[1742684503740,0.53746074,84005.0,84004.0,0.06328]
[1742684503942,1.25906074,84005.0,84004.0,0.06328]
[1742684504456,0.53746074,84005.0,84004.0,0.06328]
[1742684504647,1.22586074,84005.0,84004.0,0.06328]
[1742684507063,1.22586074,84005.0,84004.0,0.06396]
[1742684507261,1.22586074,84005.0,84004.0,0.06328]
[1742684512069,1.22586074,84005.0,84004.0,0.06396]
[1742684512270,1.22586074,84005.0,84004.0,0.06328]
[1742684513880,1.22586074,84005.0,84004.0,0.06392]
[1742684514573,1.22586074,84005.0,84004.0,0.06328]
[1742684514883,1.22586074,84005.0,84004.0,0.06392]
[1742684517182,0.86506074,84005.0,84004.0,0.06392]
[1742684517573,0.86506074,84005.0,84004.0,0.06328]
[1742684517768,0.86506074,84005.0,84004.0,0.06436]
[1742684518072,0.86506074,84005.0,84004.0,0.06328]
[1742684518680,0.85322007,84005.0,84004.0,0.1829433]
[1742684518873,0.85322007,84005.0,84004.0,0.2132433]
[1742684519782,0.85322007,84005.0,84004.0,0.09418]
[1742684519985,0.85322007,84005.0,84004.0,0.09358]
[1742684520876,0.85322007,84005.0,84004.0,0.09422]
[1742684521077,0.85322007,84005.0,84004.0,0.09358]
[1742684521278,0.85322007,84005.0,84004.0,0.2132433]
[1742684521678,0.85322007,84005.0,84004.0,0.09418]
[1742684522477,0.85322007,84005.0,84004.0,0.2132433]
[1742684522676,0.85322007,84005.0,84004.0,0.09418]
[1742684525284,0.85322007,84005.0,84004.0,0.09358]
[1742684525480,0.85322007,84005.0,84004.0,0.09418]
[1742684526385,0.85322007,84005.0,84004.0,0.00168]
[1742684526589,0.85322007,84005.0,84004.0,0.00108]
[1742684528089,0.85322007,84005.0,84004.0,0.001]
[1742684528490,0.85322007,84005.0,84004.0,0.00108]
[1742684535691,1.21402007,84005.0,84004.0,0.00108]
[1742684537500,1.21402007,84005.0,84004.0,0.00208]
[1742684538504,1.00656139,84005.0,84004.0,0.00208]
[1742684541703,0.85322007,84005.0,84004.0,0.00208]
[1742684541908,0.85322007,84005.0,84004.0,0.00276]
[1742684542206,0.85322007,84005.0,84004.0,0.00208]
[1742684544707,0.93604106,84005.0,84004.0,0.00316]
[1742684545208,0.93604106,84005.0,84004.0,0.03596]
[1742684545408,0.96924106,84005.0,84004.0,0.03596]
[1742684546509,0.96924106,84005.0,84004.0,0.00208]
[1742684546702,0.96924106,84005.0,84004.0,0.00276]
[1742684546897,0.96924106,84005.0,84004.0,0.00208]
[1742684547109,0.96924106,84005.0,84004.0,0.00276]
[1742684547512,0.96924106,84005.0,84004.0,0.00208]
[1742684547711,0.96924106,84005.0,84004.0,0.00268]
[1742684547913,0.75544951,84005.0,84004.0,0.00268]
[1742684549810,0.72224951,84005.0,84004.0,0.00268]
[1742684550513,0.85651013,84005.0,84004.0,0.06568]
[1742684550705,0.85651013,84005.0,84004.0,0.03478]
[1742684556718,0.49571013,84005.0,84004.0,0.03478]
[1742684557013,1.21731013,84005.0,84004.0,0.03478]
[1742684557608,1.21731013,84005.0,84004.0,0.03418]
[1742684558008,1.21731013,84005.0,84004.0,0.03478]
[1742684558916,1.46700673,84005.0,84004.0,0.03478]
[1742684559112,1.46700673,84005.0,84004.0,0.03418]
[1742684559313,1.46700673,84005.0,84004.0,0.03486]
[1742684559911,1.46700673,84005.0,84004.0,0.03418]
[1742684560303,1.46700673,84005.0,84004.0,0.0347]
[1742684560709,1.46700673,84005.0,84004.0,0.0341]
[1742684561119,1.46700673,84005.0,84004.0,0.0347]
[1742684562809,1.10620673,84005.0,84004.0,0.0347]
[1742684563310,1.10620673,84005.0,84004.0,0.0341]
[1742684565614,0.85651013,84005.0,84004.0,0.0347]
[1742684566813,0.85651013,84005.0,84004.0,0.002]
[1742684567607,0.85651013,84005.0,84004.0,0.00208]
[1742684568615,0.85651013,84005.0,84004.0,0.002]
[1742684568816,0.85651013,84005.0,84004.0,0.00208]
[1742684569217,0.49571013,84005.0,84004.0,0.00208]
[1742684569515,1.21731013,84005.0,84004.0,0.00208]
[1742684570020,1.37501785,84005.0,84004.0,0.00208]
[1742684574624,1.37501785,84005.0,84004.0,0.002]
[1742684574820,1.37501785,84005.0,84004.0,0.00208]
[1742684575926,0.65341785,84005.0,84004.0,0.00208]
[1742684576131,1.37501785,84005.0,84004.0,0.00208]
[1742684577525,0.65341785,84005.0,84004.0,0.00208]
[1742684577721,1.37501785,84005.0,84004.0,0.00208]
[1742684587540,1.46662141,84005.0,84004.0,0.00208]
[1742684591238,0.74502141,84005.0,84004.0,0.00208]
[1742684591437,1.46662141,84005.0,84004.0,0.00208]
[1742684592931,1.46662141,84005.0,84004.0,0.03448]
[1742684594237,1.62387138,84005.0,84004.0,0.03448]
[1742684596945,1.62387138,84005.0,84004.0,1e-07]
[1742684605469,0.1190647,84003.0,84002.0,8e-05]
[1742684605667,0.12014471,84003.0,84002.0,8e-05]
[1742684606067,0.18264471,84003.0,84002.0,8e-05]
[1742684606267,0.30168878,84003.0,84002.0,8e-05]
[1742684606767,0.30168878,84003.0,84002.0,0.00108]
[1742684609359,0.64847699,84003.0,84002.0,0.00108]
[1742684616167,0.49383577,84003.0,84002.0,0.00108]
[1742684619668,0.1190676,84001.0,84000.0,0.10104]
[1742684619969,0.2326676,84001.0,84000.0,0.0292063]
[1742684620269,0.41461167,84001.0,84000.0,1e-07]
[1742684621271,0.119069,84000.0,83999.0,9e-08]
[1742684621472,0.15084901,84000.0,83999.0,8.009e-05]
[1742684621674,0.18164901,84000.0,83999.0,9e-08]
[1742684622075,0.30069592,84000.0,83999.0,9e-08]
[1742684624177,1.21444291,84000.0,83999.0,9e-08]
[1742684624377,0.1190704,83999.0,83998.0,9e-08]
[1742684624578,0.17601685,83999.0,83998.0,9e-08]
[1742684624873,0.20811685,83999.0,83998.0,9e-08]
[1742684625073,0.74086659,83999.0,83998.0,9e-08]
[1742684626075,0.76497368,83999.0,83998.0,9e-08]
[1742684626976,1.48657368,83999.0,83998.0,9e-08]
[1742684627169,2.01358398,83999.0,83998.0,9e-08]
[1742684627769,1.29198398,83999.0,83998.0,9e-08]
[1742684627973,2.01358398,83999.0,83998.0,9e-08]
[1742684628373,1.29198398,83999.0,83998.0,9e-08]
[1742684628568,2.01358398,83999.0,83998.0,9e-08]
[1742684633780,2.37029342,83999.0,83998.0,9e-08]
[1742684635879,2.34472698,83999.0,83998.0,9e-08]
[1742684636275,2.32061989,83999.0,83998.0,9e-08]
[1742684637979,2.14232927,83999.0,83998.0,9e-08]
[1742684643587,2.16864908,83999.0,83998.0,9e-08]
[1742684643791,2.19317406,83999.0,83998.0,9e-08]
[1742684645787,2.37404713,83999.0,83998.0,9e-08]
[1742684646183,1.65244713,83999.0,83998.0,9e-08]
[1742684646388,2.37404713,83999.0,83998.0,9e-08]
[1742684646780,2.37404713,83999.0,83998.0,0.03170009]
[1742684646975,2.37404713,83999.0,83998.0,0.06420009]
[1742684647988,2.37404713,83999.0,83997.0,0.03]
[1742684647989,0.1190718,83998.0,83997.0,0.03]
[1742684648183,0.21015161,83998.0,83997.0,0.03]
[1742684648389,0.23467659,83998.0,83997.0,0.03]
[1742684648593,0.95627659,83998.0,83997.0,0.03]
[1742684648791,1.07532633,83998.0,83997.0,0.03]
[1742684652687,1.60491908,83998.0,83997.0,0.03]
[1742684656885,1.60491908,83998.0,83997.0,0.0527]
[1742684662601,0.88331908,83998.0,83997.0,0.0527]
[1742684662893,1.60491908,83998.0,83997.0,0.0527]
[1742684663293,0.88331908,83998.0,83997.0,0.0527]
[1742684663495,1.71735908,83998.0,83997.0,0.0527]
[1742684664291,1.02605908,83998.0,83997.0,0.0527]
[1742684664591,1.74765908,83998.0,83997.0,0.0527]
[1742684666104,1.74765908,83998.0,83997.0,0.0227]
[1742684666607,0.1190903,83985.0,83984.0,0.0321]
[1742684666794,0.5934903,83985.0,83984.0,0.0548]
[1742684667097,0.6245903,83985.0,83984.0,0.0548]
[1742684667296,0.74365989,83985.0,83984.0,0.0548]
[1742684667700,0.38285989,83985.0,83984.0,0.0548]
[1742684667905,1.13685989,83985.0,83984.0,0.0725]
[1742684668293,1.148795,83985.0,83984.0,0.0725]
[1742684669404,1.149795,83985.0,83984.0,0.0725]
[1742684670889,1.34194199,83985.0,83984.0,0.0725]
[1742684671490,1.36979924,83985.0,83984.0,0.0725]
[1742684672000,1.37929892,83985.0,83984.0,0.03526567]
[1742684672904,1.36979924,83985.0,83984.0,0.03526567]
[1742684675105,1.53370928,83985.0,83984.0,0.03526567]
[1742684677901,1.53370928,83985.0,83984.0,0.01756567]
[1742684678205,0.81210928,83985.0,83984.0,0.01756567]
[1742684678509,1.50585203,83985.0,83984.0,0.01756567]
[1742684678704,1.72230494,83985.0,83984.0,0.01756567]
[1742684679611,1.72230494,83985.0,83984.0,0.03526567]
[1742684680206,1.72230494,83985.0,83984.0,0.0177]
[1742684680400,1.00070494,83985.0,83984.0,0.0177]
[1742684680601,1.72230494,83985.0,83984.0,0.0177]
[1742684680806,0.1190917,83984.0,83983.0,0.00055628]
[1742684681111,0.20972896,83984.0,83983.0,0.00055628]
[1742684681508,0.32879855,83984.0,83983.0,0.00055628]
[1742684682206,0.32979855,83984.0,83983.0,0.00055628]
[1742684682707,0.33079855,83984.0,83983.0,0.00055628]
[1742684683512,0.32979855,83984.0,83983.0,0.00047628]
[1742684683705,0.32879855,83984.0,83983.0,0.00047628]
[1742684686412,0.68485558,83984.0,83983.0,0.00047628]
[1742684690115,0.87110038,83984.0,83983.0,0.00047628]
[1742684690515,1.59270038,83984.0,83983.0,0.00047628]
[1742684694220,1.40645558,83984.0,83983.0,0.00047628]
[1742684696125,1.51945558,83984.0,83983.0,0.00047628]
[1742684697023,1.49159833,83984.0,83983.0,0.00047628]
[1742684700724,1.51874338,83984.0,83983.0,0.00047628]
[1742684700924,1.35483334,83984.0,83983.0,0.00047628]
[1742684701628,0.1191144,83968.0,83967.0,0.00047637]
[1742684701828,0.84179441,83968.0,83967.0,0.00047637]
[1742684702328,0.9608881,83968.0,83967.0,0.00047637]
[1742684702522,1.0249881,83968.0,83967.0,0.00047637]
[1742684703223,1.05210247,83968.0,83967.0,0.00047637]
[1742684703426,1.05210067,83968.0,83967.0,0.00047637]
[1742684704123,1.0249881,83968.0,83967.0,0.00047637]
[1742684705229,1.38960886,83968.0,83967.0,0.00047637]
[1742684708031,1.38960886,83968.0,83967.0,7e-08]
[1742684708421,0.1191158,83967.0,83966.0,7e-08]
[1742684708726,0.1191371,83952.0,83946.0,0.0353]
[1742684708936,0.95477711,83952.0,83947.0,0.0304]
[1742684709323,0.95477711,83952.0,83948.0,0.0353]
[1742684709523,1.01537711,83952.0,83948.0,0.0353]
[1742684709725,1.1344935,83952.0,83948.0,0.0353]
[1742684710128,1.1354935,83952.0,83948.0,0.0353]
[1742684712334,1.14751615,83952.0,83948.0,0.0353]
[1742684714239,1.20540252,83952.0,83948.0,0.0353]
[1742684715038,1.09244252,83952.0,83948.0,0.0353]
[1742684715228,1.20532252,83952.0,83948.0,0.0353]
[1742684716237,1.03184252,83952.0,83948.0,0.0353]
[1742684716437,1.09674252,83952.0,83948.0,0.0353]
[1742684717134,1.03885615,83952.0,83948.0,0.0353]
[1742684724548,1.09679021,83952.0,83948.0,0.0353]
[1742684731139,1.23891867,83952.0,83948.0,0.0353]
[1742684735357,1.40392732,83952.0,83948.0,0.0353]
[1742684745253,1.43059848,83952.0,83948.0,0.0353]
[1742684745660,1.43059848,83952.0,83947.0,0.0304]
[1742684746768,1.43059848,83952.0,83948.0,0.0176]
[1742684746965,1.40392732,83952.0,83948.0,0.0176]
[1742684747464,1.40392732,83952.0,83921.0,0.28583129]